{"text_format":"1","workbook":"xlsx","n_sheets":4,"sheets":["Instructions","Pre-Application Form","Application (Forms 1 and 2)","Customized Measures (Form 3)"],"not_rendered":{"charts":0,"images":3,"macros":1,"external_links":0,"defined_names":5,"comments":0,"pivot_tables":0},"unopened":[],"bounds":{"document_bytes":16777216,"sheet_cells":100000,"rows_first":2000,"rows_last":500,"rows_between":2000,"halvings":0,"cell_chars":16384,"cell_head_chars":4096},"cells_cut":0,"cells_raw":0,"read":"whole","date_system":"1900"}

{"sheet":"Instructions","index":0,"n_rows":45,"n_cols":34,"rows_kept":45,"cut":false,"hidden":false,"merged":[[23,2,23,5],[7,2,18,8]]}
[]
[]
[null,null,null,null,"2021 Energy Efficiency Business Incentive Application"]
[]
[]
[null,"Instructions"]
[]
[null,null,"Please complete all information in the Pre-Application Form, and submit to BusinessEnergySavings@sdge.com and CC to your Account Executive (if applicable).  To send files securely, contact us at BusinessEnergySavings@sdge.com to request access to our Electronic Data Transfer (EDT) portal.\n\nOnce the Pre-Application form has been approved, complete Forms 1 and 2 & Form 3.  \n\nBoth the Customer and Project Sponsor must sign the Pre-Application Form and the completed Application. The Project Sponsor is the primary contact acting as the responsible party for the application. A customer may choose to \"self-sponsor\" or have a third party serve as project sponsor."]
[]
[]
[]
[]
[]
[]
[]
[]
[]
[]
[]
[]
[]
[null,"Submit your completed application to: "]
[]
[null,null,"BusinessEnergySavings@sdge.com"]
[null,null,"    OR"]
[null,null,"San Diego Gas & Electric® "]
[null,null,"8335 Century Park Court, CP12C"]
[null,null,"San Diego, CA 92123-1569"]
[]
[]
[]
[]
[]
[]
[]
[]
[]
[]
[]
[]
[]
[]
[]
[]
[null,null,null,null,null,null,null,null,null,null,null,null,null,null,null,null,null,null,null,null,null,null,null,null,null,null,null,null,null,null,null,null,null,2]

{"sheet":"Pre-Application Form","index":1,"n_rows":73,"n_cols":57,"rows_kept":73,"cut":false,"hidden":false,"merged":[[0,0,0,52],[1,0,1,52],[2,0,2,52],[3,0,3,52],[4,0,5,52],[6,0,6,52],[9,0,9,25],[9,27,9,39],[9,41,9,43],[10,0,10,25],[10,27,10,52],[7,0,7,52],[8,0,8,25],[8,27,8,39],[8,41,8,43],[8,45,8,52],[11,0,11,25],[11,27,11,52],[12,0,12,16],[12,18,12,34],[12,36,12,52],[13,0,13,16],[13,18,13,34],[13,36,13,52],[15,3,15,9],[15,10,15,26],[15,31,15,35],[15,39,15,43],[16,3,16,9],[16,10,16,26],[16,31,16,35],[16,43,16,51],[19,0,19,54],[20,0,20,52],[21,0,21,52],[23,0,23,25],[23,27,23,39],[23,41,23,43],[23,45,23,52],[25,0,25,25],[25,27,25,39],[25,41,25,52],[27,0,27,10],[27,12,27,22],[27,24,27,32],[27,34,27,42],[27,44,27,52],[29,0,29,19],[29,45,29,52],[31,0,31,52],[32,0,32,52],[34,0,34,25],[34,27,34,39],[34,41,34,43],[34,45,34,52],[36,0,36,33],[36,35,36,51],[38,0,38,16],[38,18,38,33],[41,0,41,52],[44,0,44,52],[61,0,61,52],[62,0,62,21],[62,22,62,36],[45,2,45,52],[46,2,46,52],[47,2,47,52],[48,2,48,52],[49,2,49,52],[51,0,53,52],[50,0,50,52],[57,0,57,21],[57,22,57,36],[57,37,57,52],[59,0,59,26],[59,31,59,40],[60,0,60,26],[62,37,62,52],[55,0,56,52],[72,0,74,52],[65,0,65,26],[66,0,66,52],[67,0,67,52],[68,0,68,52],[69,0,69,52],[64,0,64,26],[64,31,64,40]]}
["2021 Pre-Application Information Form"]
["Completed Pre-Application Information Forms should be submitted to the customer's \nassigned Account Executive, with a copy also sent to BusinessEnergySavings@sdge.com. If you are unsure who your Account Executive is, please contact the Business Call Center at 1-800-336-7343. "]
["PRIVACY NOTICE"]
["SDG&E® may be required to provide your information to the California Public Utilities Commission (CPUC) upon request.  If the CPUC requests review of your project, SDG&E will provide the CPUC with all information requested without further notification to you.  Upon submittal to the CPUC, SDG&E marks sensitive customer information as confidential and requests that this information be kept confidential.  If you do not want SDG&E to share your information with the CPUC, you must notify us within three (3) business days of the notice, and in such event, you will be prohibited from participating in the program."]
["CUSTOMER INFORMATION"]
[]
[]
["Company Name (as it appears on utility bill)"]
[]
["Company Mailing Address",null,null,null,null,null,null,null,null,null,null,null,null,null,null,null,null,null,null,null,null,null,null,null,null,null,null,"City",null,null,null,null,null,null,null,null,null,null,null,null,null,"State",null,null,null,"Zip Code"]
[]
["Contact Name"]
[]
["Contact Telephone Number",null,null,null,null,null,null,null,null,null,null,null,null,null,null,null,null,null,"Contact Fax Number",null,null,null,null,null,null,null,null,null,null,null,null,null,null,null,null,null,"Email "]
["Tax Identification Type (Select Only One)",null,null,null,null,null,null,null,null,null,null,null,null,null,null,null,null,null,null,null,null,null,null,null,null,null,null,null,"Tax Status (Select Only One)"]
[null,null,null,"Federal Tax ID",null,null,null,null,null,null,null,null,null,null,null,null,null,null,null,null,null,null,null,null,null,null,null,null,null,null,null,"Corporation",null,null,null,null,null,null,null,"Individual"]
[null,null,null,"SSN",null,null,null,null,null,null,null,null,null,null,null,null,null,null,null,null,null,null,null,null,null,null,null,null,null,null,null,"Non-Corp",null,null,null,null,null,null,null,"Exempt"]
[null,null,null,null,null,null,null,null,null,null,null,null,null,null,null,null,null,null,null,null,null,null,null,null,null,null,null,null,null,null,null,null,null,null,null,null,null,null,null,null,null,null,null,"Exempt Reason"]
[]
[]
["PROJECT SITE INFORMATION (SITE OF RETROFIT / PROJECT)"]
[]
["Project Name"]
[]
["Site Address",null,null,null,null,null,null,null,null,null,null,null,null,null,null,null,null,null,null,null,null,null,null,null,null,null,null,"City",null,null,null,null,null,null,null,null,null,null,null,null,null,"State",null,null,null,"Zip Code"]
[]
["Contact Name at Project Site",null,null,null,null,null,null,null,null,null,null,null,null,null,null,null,null,null,null,null,null,null,null,null,null,null,null,"Contact Phone Number",null,null,null,null,null,null,null,null,null,null,null,null,null,"Contact Email Address"]
[]
["Electric Account Number",null,null,null,null,null,null,null,null,null,null,null,"Gas Account Number",null,null,null,null,null,null,null,null,null,null,null,"Total Sq. Ft of Facility",null,null,null,null,null,null,null,null,null,"Years since built or last",null,null,null,null,null,null,null,null,null,"Total No. of Floors"]
[null,null,null,null,null,null,null,null,null,null,null,null,null,null,null,null,null,null,null,null,null,null,null,null,null,null,null,null,null,null,null,null,null,null,"major renovation"]
[]
["PROJECT SPONSOR (TRADE PROFESSIONAL / SELF-SPONSOR) "]
[]
["Company/Business Name of Project Sponsor"]
[]
["Address",null,null,null,null,null,null,null,null,null,null,null,null,null,null,null,null,null,null,null,null,null,null,null,null,null,null,"City ",null,null,null,null,null,null,null,null,null,null,null,null,null,"State",null,null,null,"Zip Code"]
[]
["Contact Name",null,null,null,null,null,null,null,null,null,null,null,null,null,null,null,null,null,null,null,null,null,null,null,null,null,null,null,null,null,null,null,null,null,null,"Title"]
[]
["Contact Telephone Number",null,null,null,null,null,null,null,null,null,null,null,null,null,null,null,null,null,"Email"]
[]
["ON-BILL FINANCE "]
[null,null,"Check if interested in 0% financing. * Please note: Projects utilizing On-Bill Financing option must submit OBF Application prior to purchase or installation.",null,null,null,null,null,null,null,null,null,null,null,null,null,null,null,null,null,null,null,null,null,null,null,null,null,null,null,null,null,null,null,null,null,null,null,null,null,null,null,null,null,null,null,null,null,null,null,null,null,null,null,null,null,false]
["*Rows 7, 9, 11, 13, 16, 17, 22, 24, 26, 28, 33, 36 & 40 are CONFIDENTIAL protected information being submitted to the CPUC pursuant to PUC §583 and all applicable protections. "]
["ENERGY EFFICIENCY MEASURES PROPOSED/UNDER CONSIDERATION"]
[1]
[2]
[3]
[4]
[5]
["Pre-Application Terms & Conditions:"]
["I authorize SDG&E and its employees, agents, contractors and representatives to contact the Project Sponsor listed below (if any) for the purpose of discussing any aspect of my project or any information submitted by me or my company on this application or any related project form.  My Project Sponsor is authorized to act on my behalf with respect to the project without further authorization from me or my company.   "]
[]
[]
[]
["I understand and acknowledge that completion of this form and/or acceptance of this form by SDG&E is a requirement of participation in the Energy Efficiency Business Incentive program, but is not a guarantee that my project qualifies for acceptance into the program, and is not a guarantee of any incentive in any amount.   "]
[]
[{"$f":"+A11","v":0},null,null,null,null,null,null,null,null,null,null,null,null,null,null,null,null,null,null,null,null,null,{"$f":"+AB11","v":0},null,null,null,null,null,null,null,null,null,null,null,null,null,null,{"$f":"+A7","v":0}]
["Customer (Print Name) ",null,null,null,null,null,null,null,null,null,null,null,null,null,null,null,null,null,null,null,null,null,null,"Title",null,null,null,null,null,null,null,null,null,null,null,null,null,null,"Company"]
[]
["Customer Signature",null,null,null,null,null,null,null,null,null,null,null,null,null,null,null,null,null,null,null,null,null,null,null,null,null,null,null,null,null,null,"Date"]
["The Project Sponsor agrees to follow all guidelines and procedures established in the  Customized Offering Procedures Manual for Business Terms and Conditions. Eligibility for receipt of any incentive payments is contingent on meeting these requirements. "]
[{"$f":"+A37","v":0},null,null,null,null,null,null,null,null,null,null,null,null,null,null,null,null,null,null,null,null,null,{"$f":"+AJ37","v":0},null,null,null,null,null,null,null,null,null,null,null,null,null,null,{"$f":"+A33","v":0}]
["Project Sponsor (Print Name) ",null,null,null,null,null,null,null,null,null,null,null,null,null,null,null,null,null,null,null,null,null,null,"Title",null,null,null,null,null,null,null,null,null,null,null,null,null,null,"Company"]
[]
["Project Sponsor Signature",null,null,null,null,null,null,null,null,null,null,null,null,null,null,null,null,null,null,null,null,null,null,null,null,null,null,null,null,null,null,"Date"]
["** SELF-SPONSORING CUSTOMERS PLEASE ALSO SIGN HERE AS THE PROJECT SPONSOR **"]
["           NOTE: PURCHASE AND/OR INSTALLATION OF EQUIPMENT MAY NOT OCCUR "]
["UNTIL A NOTICE TO PROCEED IS ISSUED BY SDG&E."]
["PLEASE MAKE A COPY OF THIS DOCUMENT FOR YOUR FILES."]
["*Rows 59, 61, 64 & 66 are CONFIDENTIAL protected information being submitted to the CPUC pursuant to PUC §583 and all applicable protections. "]
[]
["* In accordance with California Public Utilities Code section 399.4(b), the customer (or their contractor) must provide SDG&E proof of permit closure before SDG&E will pay any rebate or incentive for the purchase or installation of central air-conditioning, heat pumps, or related fans. Please send corresponding documentation to BusinessEnergySavings@sdge.com."]

{"sheet":"Application (Forms 1 and 2)","index":2,"n_rows":97,"n_cols":46,"rows_kept":97,"cut":false,"hidden":false,"merged":[[3,0,3,52],[87,0,87,52],[93,0,93,52],[94,0,94,52],[95,0,95,52],[68,0,68,52],[74,0,74,52],[75,0,75,50],[83,37,83,52],[90,0,90,26],[90,31,90,40],[91,0,91,26],[88,0,88,21],[81,0,81,26],[82,0,82,52],[83,0,83,21],[83,22,83,36],[88,37,88,52],[85,0,85,26],[85,31,85,40],[88,22,88,36],[86,0,86,26],[76,0,77,52],[78,0,78,52],[79,0,79,49],[80,0,80,26],[80,31,80,40],[50,0,50,25],[50,27,50,36],[50,38,50,49],[52,3,52,10],[52,31,52,35],[52,39,52,43],[53,3,53,9],[53,10,53,26],[53,31,53,35],[53,39,53,42],[53,43,53,51],[54,3,54,9],[54,10,54,26],[61,0,61,52],[62,0,64,52],[66,0,67,52],[69,0,69,52],[70,0,71,52],[73,0,73,52],[48,0,48,25],[48,27,48,39],[48,41,48,43],[48,45,48,49],[43,0,43,52],[34,0,34,16],[34,18,34,33],[49,0,49,25],[49,27,49,36],[49,38,49,52],[46,0,46,30],[46,32,46,41],[46,43,46,52],[47,0,47,25],[47,27,47,39],[47,41,47,43],[47,45,47,52],[44,0,44,52],[45,0,45,30],[45,32,45,41],[45,43,45,52],[15,41,15,43],[15,45,15,52],[32,0,32,33],[32,35,32,51],[9,18,9,34],[9,36,9,52],[12,0,12,52],[27,0,27,52],[28,0,28,52],[30,0,30,25],[17,27,17,39],[17,41,17,52],[30,27,30,39],[30,41,30,43],[23,26,23,52],[30,45,30,52],[19,24,19,32],[19,34,19,42],[19,44,19,52],[17,0,17,25],[21,0,21,19],[21,45,21,52],[26,0,26,52],[96,0,98,52],[0,13,0,52],[2,0,2,52],[4,0,4,52],[5,0,5,25],[5,27,5,39],[5,41,5,43],[5,45,5,52],[6,0,6,25],[6,27,6,39],[6,41,6,43],[19,0,19,10],[19,12,19,22],[7,27,7,52],[10,0,10,16],[10,18,10,34],[10,36,10,52],[7,0,7,25],[8,0,8,25],[8,27,8,52],[9,0,9,16],[13,0,13,52],[15,0,15,25],[15,27,15,39]]}
[]
[]
["CUSTOMER INFORMATION"]
[{"$f":"+'Pre-Application Form'!A7:AI7","v":0}]
["Company Name (as it appears on utility bill)"]
[{"$f":"+'Pre-Application Form'!A9:Z9","v":0},null,null,null,null,null,null,null,null,null,null,null,null,null,null,null,null,null,null,null,null,null,null,null,null,null,null,{"$f":"+'Pre-Application Form'!AB9:AN9","v":0},null,null,null,null,null,null,null,null,null,null,null,null,null,{"$f":"+'Pre-Application Form'!AP9:AR9","v":0},null,null,null,{"$f":"+'Pre-Application Form'!AT9:BA9","v":0}]
["Company Mailing Address",null,null,null,null,null,null,null,null,null,null,null,null,null,null,null,null,null,null,null,null,null,null,null,null,null,null,"City",null,null,null,null,null,null,null,null,null,null,null,null,null,"State",null,null,null,"Zip Code"]
[{"$f":"+'Pre-Application Form'!A11:Z11","v":0},null,null,null,null,null,null,null,null,null,null,null,null,null,null,null,null,null,null,null,null,null,null,null,null,null,null,{"$f":"+'Pre-Application Form'!AB11:BA11","v":0}]
["Contact Name",null,null,null,null,null,null,null,null,null,null,null,null,null,null,null,null,null,null,null,null,null,null,null,null,null,null,"Title"]
[{"$f":"+'Pre-Application Form'!A13:Q13","v":0},null,null,null,null,null,null,null,null,null,null,null,null,null,null,null,null,null,{"$f":"+'Pre-Application Form'!S13:AI13","v":0},null,null,null,null,null,null,null,null,null,null,null,null,null,null,null,null,null,{"$f":"+'Pre-Application Form'!AK13:BA13","v":0}]
["Contact Telephone Number",null,null,null,null,null,null,null,null,null,null,null,null,null,null,null,null,null,"Contact Fax Number",null,null,null,null,null,null,null,null,null,null,null,null,null,null,null,null,null,"Email "]
[]
["PROJECT SITE INFORMATION (SITE OF RETROFIT / PROJECT)"]
[{"$f":"+'Pre-Application Form'!A22:BA22","v":0}]
["Project Name (name should include company name, site id and project description)"]
[{"$f":"+'Pre-Application Form'!A24:Z24","v":0},null,null,null,null,null,null,null,null,null,null,null,null,null,null,null,null,null,null,null,null,null,null,null,null,null,null,{"$f":"+'Pre-Application Form'!AB24:AN24","v":0},null,null,null,null,null,null,null,null,null,null,null,null,null,{"$f":"+'Pre-Application Form'!AP9:AR9","v":0},null,null,null,{"$f":"+'Pre-Application Form'!AT24:BA24","v":0}]
["Site Address",null,null,null,null,null,null,null,null,null,null,null,null,null,null,null,null,null,null,null,null,null,null,null,null,null,null,"City",null,null,null,null,null,null,null,null,null,null,null,null,null,"State",null,null,null,"Zip Code"]
[{"$f":"+'Pre-Application Form'!A26:Z26","v":0},null,null,null,null,null,null,null,null,null,null,null,null,null,null,null,null,null,null,null,null,null,null,null,null,null,null,{"$f":"+'Pre-Application Form'!AB26:AN26","v":0},null,null,null,null,null,null,null,null,null,null,null,null,null,{"$f":"+'Pre-Application Form'!AP26:BA26","v":0}]
["Contact Name at Project Site",null,null,null,null,null,null,null,null,null,null,null,null,null,null,null,null,null,null,null,null,null,null,null,null,null,null,"Contact Phone Number",null,null,null,null,null,null,null,null,null,null,null,null,null,"Contact Email Address"]
[{"$f":"+'Pre-Application Form'!A28:K28","v":0},null,null,null,null,null,null,null,null,null,null,null,{"$f":"+'Pre-Application Form'!M28:W28","v":0},null,null,null,null,null,null,null,null,null,null,null,{"$f":"+'Pre-Application Form'!Y28:AG28","v":0},null,null,null,null,null,null,null,null,null,{"$f":"+'Pre-Application Form'!AI28:AQ28","v":0},null,null,null,null,null,null,null,null,null,{"$f":"+'Pre-Application Form'!AS28:BA28","v":0}]
["Electric Account Number",null,null,null,null,null,null,null,null,null,null,null,"Gas Account Number",null,null,null,null,null,null,null,null,null,null,null,"Total Sq. Ft of Facility",null,null,null,null,null,null,null,null,null,"Years since built or last",null,null,null,null,null,null,null,null,null,"Total No. of Floors"]
[null,null,null,null,null,null,null,null,null,null,null,null,null,null,null,null,null,null,null,null,null,null,null,null,null,null,null,null,null,null,null,null,null,null,"major renovation"]
[]
["HOW DID YOU FIND OUT ABOUT OUR PROGRAM?"]
[]
[]
["PROJECT SPONSOR (TRADE PROFESSIONAL / SELF-SPONSOR) "]
["I have entered into a contract with the Project Sponsor indicated below for the installation of energy efficiency measures at the project site listed above. All correspondence will be sent directly to the Project Sponsor specified below. If you are self-sponsoring, correspondence will be directed to the customer."]
[{"$f":"+'Pre-Application Form'!A33:BA33","v":0}]
["Company/Business Name of Project Sponsor"]
[{"$f":"+'Pre-Application Form'!A35:Z35","v":0},null,null,null,null,null,null,null,null,null,null,null,null,null,null,null,null,null,null,null,null,null,null,null,null,null,null,{"$f":"+'Pre-Application Form'!AB35:AN35","v":0},null,null,null,null,null,null,null,null,null,null,null,null,null,{"$f":"+'Pre-Application Form'!AP35:AR35","v":0},null,null,null,{"$f":"+'Pre-Application Form'!AT35:BA35","v":0}]
["Address",null,null,null,null,null,null,null,null,null,null,null,null,null,null,null,null,null,null,null,null,null,null,null,null,null,null,"City ",null,null,null,null,null,null,null,null,null,null,null,null,null,"State",null,null,null,"Zip Code"]
[{"$f":"+'Pre-Application Form'!A37:AH37","v":0},null,null,null,null,null,null,null,null,null,null,null,null,null,null,null,null,null,null,null,null,null,null,null,null,null,null,null,null,null,null,null,null,null,null,{"$f":"+'Pre-Application Form'!AJ37:AZ37","v":0}]
["Contact Name",null,null,null,null,null,null,null,null,null,null,null,null,null,null,null,null,null,null,null,null,null,null,null,null,null,null,null,null,null,null,null,null,null,null,"Title"]
[{"$f":"+'Pre-Application Form'!A39:Q39","v":0},null,null,null,null,null,null,null,null,null,null,null,null,null,null,null,null,null,{"$f":"+'Pre-Application Form'!S39:AH39","v":0}]
["Contact Telephone Number",null,null,null,null,null,null,null,null,null,null,null,null,null,null,null,null,null,"Email"]
[]
[null,null,"Check if utilizing OBF Option * Please note: Projects utilizing On-Bill Financing option must submit OBF Application prior to purchase or installation."]
[]
["INTERESTED IN OTHER ENERGY EFFICIENCY OPPORTUNITIES?"]
[null,null,"Not Interested",null,null,null,null,null,null,null,null,"Pump Efficiency",null,null,null,null,null,null,null,null,null,"HVAC Efficiency",null,null,null,null,null,null,null,null,"Energy Management Planning",null,null,null,null,null,null,null,null,null,null,null,null,null,"Engineering Training"]
[null,null,"Small-Medium Size Business (200kW or less)-No Cost/Low Cost Energy Efficiency Measures",null,null,null,null,null,null,null,null,null,null,null,null,null,null,null,null,null,null,null,null,null,null,null,null,null,null,null,null,null,null,null,null,null,null,"  Bill Savings Through Demand Response Program"]
[]
["PAYMENT INFORMATION"]
["CHECK SHOULD BE MADE PAYABLE TO:"]
[]
["Payee: Business Name",null,null,null,null,null,null,null,null,null,null,null,null,null,null,null,null,null,null,null,null,null,null,null,null,null,null,null,null,null,null,null,"Telephone Number",null,null,null,null,null,null,null,null,null,null,"Fax Number"]
[]
["Mailing Address",null,null,null,null,null,null,null,null,null,null,null,null,null,null,null,null,null,null,null,null,null,null,null,null,null,null,"City",null,null,null,null,null,null,null,null,null,null,null,null,null,"State",null,null,null,"ZIP"]
[]
["Contact Name",null,null,null,null,null,null,null,null,null,null,null,null,null,null,null,null,null,null,null,null,null,null,null,null,null,null,"Title",null,null,null,null,null,null,null,null,null,null,"E-Mail"]
["Tax Identification Type (Select Only One)",null,null,null,null,null,null,null,null,null,null,null,null,null,null,null,null,null,null,null,null,null,null,null,null,null,null,null,"Tax Status (Select Only One)"]
[null,null,null,"Employer ID Number",null,null,null,null,null,null,null,null,null,null,null,null,null,null,null,null,null,null,null,null,null,null,null,null,null,null,null,"Corporation",null,null,null,null,null,null,null,"Individual"]
[null,null,null,"Federal Tax ID ",null,null,null,null,null,null,null,null,null,null,null,null,null,null,null,null,null,null,null,null,null,null,null,null,null,null,null,"Corporation",null,null,null,null,null,null,null,"Exempt"]
[null,null,null,"SSN",null,null,null,null,null,null,null,null,null,null,null,null,null,null,null,null,null,null,null,null,null,null,null,null,null,null,null,"Non-Corp"]
[]
[]
[]
[]
[]
[]
["Incentives are generally considered subsidies for tax purposes and could be taxable. You are urged to consult your tax advisor concerning the taxability of these incentives and/or bonuses. Incentives and/or bonuses greater than $600 will be reported to the IRS on Form 1099 unless you have checked corporation or exempt tax status. San Diego Gas & Electric Company (SDG&E) is not responsible for any taxes that may be imposed on your business as a result of your receipt of any incentive/bonus.  Payees must submit a completed W-9 form if you haven't already done so for our records.  Failure to do so could result in a delay of the incentive payment."]
["I understand that I am solely responsible for the selection, purchase and ownership of measures and services under this program. I understand and acknowledge that completion of this form and/or acceptance of this form by SDG&E is a requirement of participation in the Energy Efficiency Business Incentive program, but is not a guarantee that my project qualifies for acceptance into the program, and is not a guarantee of any incentive in any amount. I understand that SDG&E makes no representations or warranties regarding the qualifications of the Project Sponsor (Trade Professionals, when not the customer), and that I am solely responsible for the selection of the Project Sponsor to implement the project. I understand that the Project Sponsor is an independent Trade Professional and is not authorized to make any representation on behalf of SDG&E. I agree that SDG&E will have no role in resolving any disputes between me, the Project Sponsor and/or any other third parties.  I also understand that I can serve as my own Project Sponsor. "]
[]
[]
[]
["I have authority to contract, on behalf of the legal owners of the project site, for installation of the measures, or I have obtained the permission of the legal owner of the project site to install energy efficiency measures under my contract with the Project Sponsor.  I understand the program may require inspections and measurements of the performance of measures installed; therefore, I agree to provide access to the project site for those purposes to SDG&E and/or its agents or assigns.  "]
[]
["I understand that I am responsible for ensuring Title 24 code compliance of my project.  Should SDG&E determine that all of, or portions of a project do not comply with code requirements, SDG&E reserves the right to modify or cancel the incentive amount at any time."]
["A separate Agreement will be provided for signature by the Project Sponsor and Customer upon approval by SDG&E. "]
["As a qualified SDG&E customer, I certify that the indicated energy savings measures are for use in my business facility and not for resale. I agree to provide SDG&E with documents establishing paid proof of purchase for the measures applied for in this application package and product installations. I understand the incentive payments are based on the related energy benefits over the life of a product. I agree that if (1) I do not provide SDG&E with 100% of the related energy benefits specified in the application package for five (5) years from receipt of the incentive, or (2) I cease to be a customer of SDG&E during said time period, I shall refund a prorated amount of incentive dollars to SDG&E based on the actual period of time for which I provided the related energy benefits as a customer of SDG&E."]
[]
[]
["The total incentive payment shall not exceed the Customer Project Incentive Cap, as defined in the Customized Offering Procedures Manual for Business. This program is funded by California utility customers and administrated by SDG&E under the auspices of the California Public Utilities Commission. This program may be modified or terminated without prior notice."]
["I UNDERSTAND THAT SDG&E MAKES NO REPRESENTATION OR WARRANTY, EXPRESS OR IMPLIED, INCLUDING WARRANTY OF MERCHANTABILITY OR FITNESS FOR ANY PARTICULAR PURPOSE, USE OR APPLICATION, AND ASSUMES NO LIABILITY, WITH RESPECT TO THE QUALITY, SAFETY, PERFORMANCE, RELIABILITY OR EFFICIENCY OF ANY MEASURE INSTALLED OR COMPONENTS THEREOF, AND THAT SDG&E EXPRESSLY DISCLAIMS ANY SUCH REPRESENTATION, WARRANTY OR LIABILITY.  I AGREE TO INDEMNIFY SAN DIEGO GAS & ELECTRIC, ITS AFFILIATES, SUBSIDIARIES, PARENT COMPANY, OFFICERS, DIRECTORS, AGENTS AND EMPLOYEES AGAINST ALL LOSS, DAMAGE, EXPENSE, FEES, COSTS AND LIABILITY ARISING FROM ANY MEASURES INSTALLED."]
["PAYMENT RELEASE AUTHORIZATION (Customer signs below if incentive is directed to a third party) "]
["As the customer of record, I understand the incentive payment will be made to the third party named above and that I will not be receiving the incentive check from SDG&E. I also understand that my release of the payment to the third party does not exempt me from the program requirements."]
[]
[]
["Customer Authorization: (Please Print Name)"]
[]
["Signature",null,null,null,null,null,null,null,null,null,null,null,null,null,null,null,null,null,null,null,null,null,null,null,null,null,null,null,null,null,null,"Date"]
["I have read and understand the program requirements and terms and conditions set forth in this application package and agree to abide by such requirements and terms and conditions. I certify that the information provided in this application package is true, correct and complete in all respects and that the project(s) for which I am requesting incentive(s) meet the program requirements set forth in this application package. I understand and agree that I must meet all eligibility criteria in order to receive a payment under this program. I agree that I have not received rebates, incentives or services for the same measures from other utilities, state or local programs funded by the Public Goods Charge.                                                                                                                                                                                                                                             RELEASE OF INFORMATION   If the CPUC requests review of your project, SDG&E will provide the CPUC with all of the information requested without further notification to you. If you refuse to allow the CPUC, its staff or its contractors and/or consultants to have access to your data, you will not be allowed to participate, and you will be ineligible to receive any program incentives. Please note that if you designated a project sponsor, a similar notification has been forwarded to them as well. In the event your project is selected for review, SDG&E will mark your data as confidential before submitting your files to the CPUC pursuant to PUC §583 and all applicable protections."]
[{"$f":"+A8","v":0},null,null,null,null,null,null,null,null,null,null,null,null,null,null,null,null,null,null,null,null,null,{"$f":"+AB8","v":0},null,null,null,null,null,null,null,null,null,null,null,null,null,null,{"$f":"+A4","v":0}]
["Customer (Print Name) ",null,null,null,null,null,null,null,null,null,null,null,null,null,null,null,null,null,null,null,null,null,null,"Title",null,null,null,null,null,null,null,null,null,null,null,null,null,null,"Company"]
[]
["Customer Signature",null,null,null,null,null,null,null,null,null,null,null,null,null,null,null,null,null,null,null,null,null,null,null,null,null,null,null,null,null,null,"Date"]
["The Project Sponsor agrees to follow all guidelines and procedures established in the Customized Offering Procedures Manual for Business Terms and Conditions. Eligibility for receipt of any incentive payments is contingent on meeting these requirements. "]
[{"$f":"+A33","v":0},null,null,null,null,null,null,null,null,null,null,null,null,null,null,null,null,null,null,null,null,null,{"$f":"+AJ33","v":0},null,null,null,null,null,null,null,null,null,null,null,null,null,null,{"$f":"+A29","v":0}]
["Project Sponsor (Print Name) ",null,null,null,null,null,null,null,null,null,null,null,null,null,null,null,null,null,null,null,null,null,null,"Title",null,null,null,null,null,null,null,null,null,null,null,null,null,null,"Company"]
[]
["Project Sponsor Signature",null,null,null,null,null,null,null,null,null,null,null,null,null,null,null,null,null,null,null,null,null,null,null,null,null,null,null,null,null,null,"Date"]
[]
["** SELF-SPONSORING CUSTOMERS PLEASE ALSO SIGN HERE AS THE PROJECT SPONSOR **"]
["NOTE: THIS APPLICATION IS ONLY VALID 90 DAYS FROM THE DATE OF RECEIPT."]
["PURCHASE AND/OR INSTALLATION OF EQUIPMENT MAY NOT OCCUR UNTIL A NOTICE TO PROCEED IS ISSUED BY SDG&E."]
["* In accordance with California Public Utilities Code section 399.4(b), the customer (or their contractor) must provide SDG&E proof of permit closure before SDG&E will pay any rebate or incentive for the purchase or installation of central air-conditioning, heat pumps, or related fans. Please send corresponding documentation to BusinessEnergySavings@sdge.com."]

{"sheet":"Customized Measures (Form 3)","index":3,"n_rows":52,"n_cols":102,"rows_kept":52,"cut":false,"hidden":false,"merged":[[6,86,6,88],[16,91,16,93],[16,53,17,61],[16,62,17,70],[0,23,0,49],[1,23,1,49],[16,71,17,78],[16,79,17,81],[17,1,17,19],[16,0,16,19],[14,3,14,16],[9,0,13,81],[16,20,17,27],[16,28,17,52],[2,6,2,32],[3,14,3,32],[2,48,2,79],[18,1,18,19],[18,53,18,61],[18,62,18,70],[18,71,18,78],[18,79,18,81],[19,1,19,19],[19,53,19,61],[19,62,19,70],[19,71,19,78],[19,79,19,81],[18,28,18,52],[19,28,19,52],[20,1,20,19],[20,53,20,61],[20,62,20,70],[20,71,20,78],[20,79,20,81],[21,1,21,19],[21,53,21,61],[21,62,21,70],[21,71,21,78],[21,79,21,81],[20,28,20,52],[21,28,21,52],[31,14,31,19],[31,20,31,23],[31,24,31,27],[31,28,31,29],[26,0,26,48],[26,49,26,81],[27,0,30,3],[27,4,30,8],[27,9,30,13],[27,14,30,23],[27,24,30,29],[27,30,30,38],[27,39,30,48],[27,49,30,51],[27,52,30,56],[27,57,30,63],[27,64,30,72],[27,73,30,79],[31,49,31,51],[31,52,31,56],[31,57,31,63],[31,64,31,72],[31,73,31,79],[27,80,30,81],[32,30,32,33],[32,34,32,38],[32,39,32,48],[32,49,32,51],[32,52,32,56],[32,57,32,63],[32,64,32,72],[31,0,31,3],[31,4,31,6],[31,7,31,8],[31,9,31,11],[31,30,31,33],[31,34,31,38],[31,39,31,48],[32,0,32,3],[32,4,32,6],[32,7,32,8],[32,9,32,11],[32,12,32,13],[32,14,32,19],[32,20,32,23],[32,24,32,27],[32,28,32,29],[31,12,31,13],[33,0,33,3],[33,4,33,6],[33,7,33,8],[33,9,33,11],[33,12,33,13],[33,14,33,19],[33,20,33,23],[33,24,33,27],[33,28,33,29],[34,20,34,23],[34,24,34,27],[34,28,34,29],[34,30,34,33],[34,34,34,38],[34,39,34,48],[34,49,34,51],[34,52,34,56],[34,57,34,63],[35,0,35,3],[35,4,35,6],[35,7,35,8],[35,9,35,11],[35,12,35,13],[35,14,35,19],[34,0,34,3],[34,4,34,6],[34,7,34,8],[34,9,34,11],[34,12,34,13],[34,14,34,19],[35,20,35,23],[35,24,35,27],[35,28,35,29],[35,30,35,33],[35,34,35,38],[35,39,35,48],[35,49,35,51],[35,52,35,56],[35,57,35,63],[39,10,39,12],[51,0,53,81],[43,0,44,81],[45,0,45,81],[46,0,46,81],[47,0,47,19],[47,51,47,55],[41,10,41,12],[37,64,37,81],[38,64,38,81],[39,64,39,81],[40,64,40,81],[37,31,37,48],[38,31,38,48],[39,31,39,48],[40,31,40,48],[37,10,37,12],[41,31,41,48],[41,64,41,81],[31,80,31,81],[32,73,32,79],[33,73,33,79],[34,73,34,79],[35,73,35,79],[32,80,32,81],[33,80,33,81],[34,80,34,81],[35,80,35,81],[35,64,35,72],[34,64,34,72],[33,30,33,33],[33,34,33,38],[33,39,33,48],[33,49,33,51],[33,52,33,56],[33,57,33,63],[33,64,33,72]]}
[null,null,null,null,null,null,null,null,null,null,null,null,null,null,null,null,null,null,null,null,null,null,null,"San Diego Gas & Electric \n2021 Energy Efficiency Business Incentive Application",null,null,null,null,null,null,null,null,null,null,null,null,null,null,null,null,null,null,null,null,null,null,null,null,null,null,null,null,null,null,null,null,null,null,null,null,null,null,null,null,null,null,null,null,null,null,null,null,null,null,null,null,null,null,null,null,null,null,null,null,"v3.0 7/1/2020"]
[null,null,null,null,null,null,null,null,null,null,null,null,null,null,null,null,null,null,null,null,null,null,null,"Customized Measures - FORM 3"]
[null,null,null,null,null,"Project Name",{"$f":"IF('Application (Forms 1 and 2)'!A14=\"\",\"\",'Application (Forms 1 and 2)'!A14)","v":0},null,null,null,null,null,null,null,null,null,null,null,null,null,null,null,null,null,null,null,null,null,null,null,null,null,null,null,null,null,null,null,null,null,null,null,null,null,null,null,null,"Project Sponsor",{"$f":"IF('Application (Forms 1 and 2)'!A29=0, \"\", 'Application (Forms 1 and 2)'!A29)","v":""},null,null,null,null,null,null,null,null,null,null,null,null,null,null,null,null,null,null,null,null,null,null,null,null,null,null,null,null,null,null,null,null,null,null,null,"Customer Type",0]
[null,null,null,null,null,null,null,null,null,null,null,null,null,"Estimated Installation Completion Date (MM/DD/YYYY):",null,null,null,null,null,null,null,null,null,null,null,null,null,null,null,null,null,null,null,null,null,null,null,null,null,null,null,null,null,null,null,null,null,"Customer Type:",null,null,null,null,null,null,null,null,null,null,null,null,null,null,null,null,null,null,null,null,null,null,null,null,null,null,null,null,null,null,null,null,null,null,null,null,"Max Incentive Cap",1000000]
[]
["Energy Efficiency Measure Information"]
["If you need assistance completing this application, please contact your SDG&E account representative.",null,null,null,null,null,null,null,null,null,null,null,null,null,null,null,null,null,null,null,null,null,null,null,null,null,null,null,null,null,null,null,null,null,null,null,null,null,null,null,null,null,null,null,null,null,null,null,null,null,null,null,null,null,null,null,null,null,null,null,null,null,null,null,null,null,null,null,null,null,null,null,null,null,null,null,null,null,null,null,null,null,null,null,null,null,"Incentive Rate"]
["1. Indicate the Site Name and Account ID Number that will be affected by the measure. If the same measure is being installed at multiple sites, please create separate line items for each site.",null,null,null,null,null,null,null,null,null,null,null,null,null,null,null,null,null,null,null,null,null,null,null,null,null,null,null,null,null,null,null,null,null,null,null,null,null,null,null,null,null,null,null,null,null,null,null,null,null,null,null,null,null,null,null,null,null,null,null,null,null,null,null,null,null,null,null,null,null,null,null,null,null,null,null,null,null,null,null,null,null,null,null,"Measure Type","Measure Code","kWh","kW","therms","Cost Cap","IMC Cost Cap","Pre-Baseline","Post-Baseline"]
["2. Indicate the Technology Type by checking Lighting or Non-Lighting.",null,null,null,null,null,null,null,null,null,null,null,null,null,null,null,null,null,null,null,null,null,null,null,null,null,null,null,null,null,null,null,null,null,null,null,null,null,null,null,null,null,null,null,null,null,null,null,null,null,null,null,null,null,null,null,null,null,null,null,null,null,null,null,null,null,null,null,null,null,null,null,null,null,null,null,null,null,null,null,null,null,null,null,"AR",1,0.12,150,1.25,1,"FMC","Existing Baseline","Installed Equipment"]
["3. Select the Measure Type. Choose AR if the measure is to be claimed as Accelerated Replacement (e.g. if the equipment being replaced is still operational and capable of being operated for one additional year). Choose NR if the measure is to be claimed as Normal Replacement (e.g. if the equipment being replaced is not operational, or incapable of being operated for one additional year). Choose AOE if the measure is to be claimed as Add-On Equipment (e.g. if this is a controls measure or a mechanism added to existing equipment resulting in increased efficiency). Choose NEW if the measure is to be claimed as New Load (e.g. Installation of new, high-efficiency equipment to meet expanded process needs or new production loads, that does not involve: Change in facility function/footprint, Movement of key equipment/operations or Construction/removal of walls). Choose RCx if the measure is claimed to as Retrocommissioning (e.g. if the measure being implemented is the result of equipment reconditioning or a behavioral measure saving opportunity).",null,null,null,null,null,null,null,null,null,null,null,null,null,null,null,null,null,null,null,null,null,null,null,null,null,null,null,null,null,null,null,null,null,null,null,null,null,null,null,null,null,null,null,null,null,null,null,null,null,null,null,null,null,null,null,null,null,null,null,null,null,null,null,null,null,null,null,null,null,null,null,null,null,null,null,null,null,null,null,null,null,null,null,"NR",2,0.12,150,1.25,1,"IMC","Standard Practice","Installed Equipment"]
[null,null,null,null,null,null,null,null,null,null,null,null,null,null,null,null,null,null,null,null,null,null,null,null,null,null,null,null,null,null,null,null,null,null,null,null,null,null,null,null,null,null,null,null,null,null,null,null,null,null,null,null,null,null,null,null,null,null,null,null,null,null,null,null,null,null,null,null,null,null,null,null,null,null,null,null,null,null,null,null,null,null,null,null,"AOE",3,0.12,150,1.25,0.5,"FMC","Existing Baseline","Installed Equipment"]
[null,null,null,null,null,null,null,null,null,null,null,null,null,null,null,null,null,null,null,null,null,null,null,null,null,null,null,null,null,null,null,null,null,null,null,null,null,null,null,null,null,null,null,null,null,null,null,null,null,null,null,null,null,null,null,null,null,null,null,null,null,null,null,null,null,null,null,null,null,null,null,null,null,null,null,null,null,null,null,null,null,null,null,null,"NEW",4,0.12,150,1.25,1,"IMC","Standard Practice","Installed Equipment"]
[null,null,null,null,null,null,null,null,null,null,null,null,null,null,null,null,null,null,null,null,null,null,null,null,null,null,null,null,null,null,null,null,null,null,null,null,null,null,null,null,null,null,null,null,null,null,null,null,null,null,null,null,null,null,null,null,null,null,null,null,null,null,null,null,null,null,null,null,null,null,null,null,null,null,null,null,null,null,null,null,null,null,null,null,"RCx",5,0.06,75,0.5,0.5,"FMC","Existing Baseline","Installed Equipment"]
[]
[null,null,null,"Enter data in blue cells"]
[]
["Calculated Measures",null,null,null,null,null,null,null,null,null,null,null,null,null,null,null,null,null,null,null,"Measure Type",null,null,null,null,null,null,null,"Description of the Proposed Measure",null,null,null,null,null,null,null,null,null,null,null,null,null,null,null,null,null,null,null,null,null,null,null,null,"Full Measure Cost ($)*",null,null,null,null,null,null,null,null,"Incremental Meas. Cost ($)*",null,null,null,null,null,null,null,null,"Year Eqpt.\nInstalled",null,null,null,null,null,null,null,"Calculation Tool",null,null,null,null,null,null,null,null,null,null,null,"incentive rate"]
["#","Site Name (and Account ID# to be impacted by measure)",null,null,null,null,null,null,null,null,null,null,null,null,null,null,null,null,null,null,null,null,null,null,null,null,null,null,null,null,null,null,null,null,null,null,null,null,null,null,null,null,null,null,null,null,null,null,null,null,null,null,null,null,null,null,null,null,null,null,null,null,null,null,null,null,null,null,null,null,null,null,null,null,null,null,null,null,null,null,null,null,null,null,"Measure","Measure Type","Pre-Baseline","Post Baseline","Electricity Savings","Gas Savings","Demand Reduction","kWh","therms","kW","Energy Incentive","Demand Incentive","Total Incentive","measure cost cap","Cost Adjustment Type","Measure Cost","Cost Adjustment","Final Incentive"]
[1,null,null,null,null,null,null,null,null,null,null,null,null,null,null,null,null,null,null,null,null,null,null,null,null,null,null,null,null,null,null,null,null,null,null,null,null,null,null,null,null,null,null,null,null,null,null,null,null,null,null,null,null,null,null,null,null,null,null,null,null,null,null,null,null,null,null,null,null,null,null,null,null,null,null,null,null,null,null,null,null,null,null,null,1,0,{"$f":"IF(CH19=0,\"-\",INDEX(CN$9:CN$13,MATCH($CH19,$CH$9:$CH$13,0)))","v":"-"},{"$f":"IF(CH19=0,\"-\",INDEX(CO$9:CO$13,MATCH($CH19,$CH$9:$CH$13,0)))","v":"-"},{"$f":"MAX(ROUND(IF(OR($CH19=1,$CH19=3,$CH19=5),E33-O33,IF(OR($CH19=2,$CH19=4),J33-O33,0)),1),0)","v":0},{"$f":"MAX(ROUND(IF(OR($CH19=1,$CH19=3,$CH19=5),H33-U33,IF(OR($CH19=2,$CH19=4),M33-U33,0)),1),0)","v":0},{"$f":"MAX(ROUND(IF(OR($CH19=1,$CH19=3,$CH19=5),AX33-BF33,IF(OR($CH19=2,$CH19=4),BA33-BF33,0)),2),0)","v":0},{"$f":"IF(CH19=0,\"-\",IF($CH$3=4,0.24,INDEX(CI$9:CI$13,MATCH($CH19,$CH$9:$CH$13,0))))","v":"-"},{"$f":"IF(CH19=0,\"-\",IF($CH$3=4,1.25,INDEX(CK$9:CK$13,MATCH($CH19,$CH$9:$CH$13,0))))","v":"-"},{"$f":"IF(CH19=0,\"-\",IF($CH$3=4,0,INDEX(CJ$9:CJ$13,MATCH($CH19,$CH$9:$CH$13,0))))","v":"-"},{"$f":"IF(SUM(CK19:CL19)=0,0,CK19*CN19+CL19*CO19)","v":0},{"$f":"IF(CM19=0,0,CM19*CP19)","v":0},{"$f":"CQ19+CR19","v":0},{"$f":"IF(CH19=0,\"-\",INDEX(CL$9:CL$13,MATCH($CH19,$CH$9:$CH$13,0)))","v":"-"},{"$f":"IF(CH19=0,\"-\",INDEX(CM$9:CM$13,MATCH($CH19,$CH$9:$CH$13,0)))","v":"-"},{"$f":"IF(CU19=\"FMC\",BB19*CT19,IF(CU19=\"IMC\",BK19*CT19,0))","v":0},{"$f":"IF(CS19>CV19,CS19-CV19,0)","v":0},{"$f":"IF(CV19<=0,0,CS19-CW19)","v":0}]
[2,null,null,null,null,null,null,null,null,null,null,null,null,null,null,null,null,null,null,null,null,null,null,null,null,null,null,null,null,null,null,null,null,null,null,null,null,null,null,null,null,null,null,null,null,null,null,null,null,null,null,null,null,null,null,null,null,null,null,null,null,null,null,null,null,null,null,null,null,null,null,null,null,null,null,null,null,null,null,null,null,null,null,null,2,0,{"$f":"IF(CH20=0,\"-\",INDEX(CN$9:CN$13,MATCH($CH20,$CH$9:$CH$13,0)))","v":"-"},{"$f":"IF(CH20=0,\"-\",INDEX(CO$9:CO$13,MATCH($CH20,$CH$9:$CH$13,0)))","v":"-"},{"$f":"MAX(ROUND(IF(OR($CH20=1,$CH20=3,$CH20=5),E34-O34,IF(OR($CH20=2,$CH20=4),J34-O34,0)),1),0)","v":0},{"$f":"MAX(ROUND(IF(OR($CH20=1,$CH20=3,$CH20=5),H34-U34,IF(OR($CH20=2,$CH20=4),M34-U34,0)),1),0)","v":0},{"$f":"MAX(ROUND(IF(OR($CH20=1,$CH20=3,$CH20=5),AX34-BF34,IF(OR($CH20=2,$CH20=4),BA34-BF34,0)),2),0)","v":0},{"$f":"IF(CH20=0,\"-\",IF($CH$3=4,0.24,INDEX(CI$9:CI$13,MATCH($CH20,$CH$9:$CH$13,0))))","v":"-"},{"$f":"IF(CH20=0,\"-\",IF($CH$3=4,1.25,INDEX(CK$9:CK$13,MATCH($CH20,$CH$9:$CH$13,0))))","v":"-"},{"$f":"IF(CH20=0,\"-\",IF($CH$3=4,0,INDEX(CJ$9:CJ$13,MATCH($CH20,$CH$9:$CH$13,0))))","v":"-"},{"$f":"IF(SUM(CK20:CL20)=0,0,CK20*CN20+CL20*CO20)","v":0},{"$f":"IF(CM20=0,0,CM20*CP20)","v":0},{"$f":"CQ20+CR20","v":0},{"$f":"IF(CH20=0,\"-\",INDEX(CL$9:CL$13,MATCH($CH20,$CH$9:$CH$13,0)))","v":"-"},{"$f":"IF(CH20=0,\"-\",INDEX(CM$9:CM$13,MATCH($CH20,$CH$9:$CH$13,0)))","v":"-"},{"$f":"IF(CU20=\"FMC\",BB20*CT20,IF(CU20=\"IMC\",BK20*CT20,0))","v":0},{"$f":"IF(CS20>CV20,CS20-CV20,0)","v":0},{"$f":"IF(CV20<=0,0,CS20-CW20)","v":0}]
[3,null,null,null,null,null,null,null,null,null,null,null,null,null,null,null,null,null,null,null,null,null,null,null,null,null,null,null,null,null,null,null,null,null,null,null,null,null,null,null,null,null,null,null,null,null,null,null,null,null,null,null,null,null,null,null,null,null,null,null,null,null,null,null,null,null,null,null,null,null,null,null,null,null,null,null,null,null,null,null,null,null,null,null,3,0,"-","-",{"$f":"MAX(ROUND(IF(OR($CH21=1,$CH21=3,$CH21=5),E35-O35,IF(OR($CH21=2,$CH21=4),J35-O35,0)),1),0)","v":0},0,0,"-","-","-",0,0,0,"-","-",{"$f":"IF(CU21=\"FMC\",BB21*CT21,IF(CU21=\"IMC\",BK21*CT21,0))","v":0},0,0]
[4,null,null,null,null,null,null,null,null,null,null,null,null,null,null,null,null,null,null,null,null,null,null,null,null,null,null,null,null,null,null,null,null,null,null,null,null,null,null,null,null,null,null,null,null,null,null,null,null,null,null,null,null,null,null,null,null,null,null,null,null,null,null,null,null,null,null,null,null,null,null,null,null,null,null,null,null,null,null,null,null,null,null,null,4,0,"-","-",0,0,0,"-","-","-",0,0,0,"-","-",{"$f":"IF(CU22=\"FMC\",BB22*CT22,IF(CU22=\"IMC\",BK22*CT22,0))","v":0},0,0]
[]
["Energy Efficiency Savings and Incentive Summary"]
["ENERGY/PERMANENT ON-PEAK DEMAND MEASURE DETAILS (Attach calculation sheets to this form and enter the energy savings and demand reduction parameters for Calculated Saving Measure below)"]
[]
["Energy Savings",null,null,null,null,null,null,null,null,null,null,null,null,null,null,null,null,null,null,null,null,null,null,null,null,null,null,null,null,null,null,null,null,null,null,null,null,null,null,null,null,null,null,null,null,null,null,null,null,"Permanent On-Peak Demand Reduction",null,null,null,null,null,null,null,null,null,null,null,null,null,null,null,null,null,null,null,null,null,null,null,null,null,null,null,null,null,null,null,null,null,null,"Calculation Tools"]
["Calculated\nMeasure\nfrom # above",null,null,null,"Existing Equipment Baseline Usage",null,null,null,null,"Code/Standard Equip Baseline Usage\n(leave blank if unknown)",null,null,null,null,"Installed Usage",null,null,null,null,null,null,null,null,null,"Energy Savings",null,null,null,null,null,"Incentive\nRate",null,null,null,null,null,null,null,null,"Energy\nIncentive ($)",null,null,null,null,null,null,null,null,null,"Existing Equipment Baseline On-Peak Demand (kW)",null,null,"Code/Standard Equipment Baseline On-Peak Demand (kW)",null,null,null,null,"Installed\nOn-Peak\nDemand (kW)",null,null,null,null,null,null,"On-Peak\nDemand\nReduction (kW)",null,null,null,null,null,null,null,null,"Peak Demand Incentive Rate",null,null,null,null,null,null,"Peak kW\nIncentive ($)",null,null,null,"READI-2011 (database for multiple DEER measures)"]
[null,null,null,null,null,null,null,null,null,null,null,null,null,null,null,null,null,null,null,null,null,null,null,null,null,null,null,null,null,null,null,null,null,null,null,null,null,null,null,null,null,null,null,null,null,null,null,null,null,null,null,null,null,null,null,null,null,null,null,null,null,null,null,null,null,null,null,null,null,null,null,null,null,null,null,null,null,null,null,null,null,null,null,null,"CCT2013 (multiple measures)"]
[null,null,null,null,null,null,null,null,null,null,null,null,null,null,null,null,null,null,null,null,null,null,null,null,null,null,null,null,null,null,null,null,null,null,null,null,null,null,null,null,null,null,null,null,null,null,null,null,null,null,null,null,null,null,null,null,null,null,null,null,null,null,null,null,null,null,null,null,null,null,null,null,null,null,null,null,null,null,null,null,null,null,null,null,"eQuest (whole building/facility modeling)"]
[null,null,null,null,null,null,null,null,null,null,null,null,null,null,null,null,null,null,null,null,null,null,null,null,null,null,null,null,null,null,null,null,null,null,null,null,null,null,null,null,null,null,null,null,null,null,null,null,null,null,null,null,null,null,null,null,null,null,null,null,null,null,null,null,null,null,null,null,null,null,null,null,null,null,null,null,null,null,null,null,null,null,null,null,"Energy Pro (whole building/facility modeling)"]
[null,null,null,null,"kWh/yr",null,null,"therm/yr",null,"kWh/yr",null,null,"therm/yr",null,"kWh/yr",null,null,null,null,null,"therm/yr",null,null,null,"kWh/yr",null,null,null,"therm/yr",null,"$/kWh",null,null,null,"$/therm",null,null,null,null,"$",null,null,null,null,null,null,null,null,null,"kW",null,null,"kW",null,null,null,null,"kW",null,null,null,null,null,null,"kW",null,null,null,null,null,null,null,null,"$/kW",null,null,null,null,null,null,"$",null,null,null,"MotorMaster+ (motors)"]
["1",null,null,null,null,null,null,null,null,null,null,null,null,null,null,null,null,null,null,null,null,null,null,null,{"$f":"CK19","v":0},null,null,null,{"$f":"CL19","v":0},null,{"$f":"CN19","v":"-"},null,null,null,{"$f":"CO19","v":"-"},null,null,null,null,{"$f":"CQ19","v":0},null,null,null,null,null,null,null,null,null,null,null,null,null,null,null,null,null,null,null,null,null,null,null,null,{"$f":"CM19","v":0},null,null,null,null,null,null,null,null,{"$f":"CP19","v":"-"},null,null,null,null,null,null,{"$f":"CR19","v":0},null,null,null,"AirMaster+ (compressed air)"]
[2,null,null,null,null,null,null,null,null,null,null,null,null,null,null,null,null,null,null,null,null,null,null,null,{"$f":"CK20","v":0},null,null,null,{"$f":"CL20","v":0},null,{"$f":"CN20","v":"-"},null,null,null,{"$f":"CO20","v":"-"},null,null,null,null,{"$f":"CQ20","v":0},null,null,null,null,null,null,null,null,null,null,null,null,null,null,null,null,null,null,null,null,null,null,null,null,{"$f":"CM20","v":0},null,null,null,null,null,null,null,null,{"$f":"CP20","v":"-"},null,null,null,null,null,null,{"$f":"CR20","v":0},null,null,null,"SimCalc2 (whole building/facility modeling)"]
[3,null,null,null,null,null,null,null,null,null,null,null,null,null,null,null,null,null,null,null,null,null,null,null,0,null,null,null,0,null,"-",null,null,null,"-",null,null,null,null,0,null,null,null,null,null,null,null,null,null,null,null,null,null,null,null,null,null,null,null,null,null,null,null,null,0,null,null,null,null,null,null,null,null,"-",null,null,null,null,null,null,0,null,null,null,"BOA (multiple measures)"]
[4,null,null,null,null,null,null,null,null,null,null,null,null,null,null,null,null,null,null,null,null,null,null,null,0,null,null,null,0,null,"-",null,null,null,"-",null,null,null,null,0,null,null,null,null,null,null,null,null,null,null,null,null,null,null,null,null,null,null,null,null,null,null,null,null,0,null,null,null,null,null,null,null,null,"-",null,null,null,null,null,null,0,null,null,null,"C-BOA (customized calculation on a few measures)"]
[null,null,null,null,null,null,null,null,null,null,null,null,null,null,null,null,null,null,null,null,null,null,null,null,null,null,null,null,null,null,null,null,null,null,null,null,null,null,null,null,null,null,null,null,null,null,null,null,null,null,null,null,null,null,null,null,null,null,null,null,null,null,null,null,null,null,null,null,null,null,null,null,null,null,null,null,null,null,null,null,null,null,null,null,"PSAT (pumping)"]
["Estimated Energy Savings Totals",null,null,null,null,null,null,null,null,null,{"$f":"SUM(Y33:AB36)","v":0},null,null,"kWh",null,null,null,null,null,null,null,null,null,null,null,null,null,null,null,null,"Total Measure Cost ($)",{"$f":"SUM(BB19:BJ22)","v":0},null,null,null,null,null,null,null,null,null,null,null,null,null,null,null,null,null,null,null,null,null,null,null,null,null,null,null,null,null,null,null,null,"CUSTOMIZED RETROFIT INCENTIVE RATES",null,null,null,null,null,null,null,null,null,null,null,null,null,null,null,null,null,null,null,"FSAT (fans)"]
[null,null,null,null,null,null,null,null,null,null,null,null,null,null,null,null,null,null,null,null,null,null,null,null,null,null,null,null,null,null,"Total Incremental Cost ($)",{"$f":"SUM(BK19:BS22)","v":0},null,null,null,null,null,null,null,null,null,null,null,null,null,null,null,null,null,null,null,null,null,null,null,null,null,null,null,null,null,null,null,null,{"$f":"IF(CH3=4,\"Electric $0.24\",\"Electric $0.12\")","v":"Electric $0.12"},null,null,null,null,null,null,null,null,null,null,null,null,null,null,null,null,null,null,null,"CWSAT (chilled water)"]
[null,null,null,null,null,null,null,null,null,null,{"$f":"SUM(AC33:AD36)","v":0},null,null,"therms",null,null,null,null,null,null,null,null,null,null,null,null,null,null,null,null,"Estimated Subtotal Incentive ($)",{"$f":"SUM(CS19:CS22)","v":0},null,null,null,null,null,null,null,null,null,null,null,null,null,null,null,null,null,null,null,null,null,null,null,null,null,null,null,null,null,null,null,null,"Gas $1.25",null,null,null,null,null,null,null,null,null,null,null,null,null,null,null,null,null,null,null,"3EPlus (pipe insulation)"]
[null,null,null,null,null,null,null,null,null,null,null,null,null,null,null,null,null,null,null,null,null,null,null,null,null,null,null,null,null,null,"Retrofit Cost Adjustment ($)",{"$f":"SUM(CW19:CW22)","v":0},null,null,null,null,null,null,null,null,null,null,null,null,null,null,null,null,null,null,null,null,null,null,null,null,null,null,null,null,null,null,null,null,{"$f":"IF(CH3=4,\"-\",\"Peak Demand $150\")","v":"Peak Demand $150"},null,null,null,null,null,null,null,null,null,null,null,null,null,null,null,null,null,null,null,"IES Spreadsheet (SDG&E tool for lighting)"]
["On-Peak Demand Reduction",null,null,null,null,null,null,null,null,null,{"$f":"SUM(BM33:BU36)","v":0},null,null,"kW",null,null,null,null,null,null,null,null,null,null,null,null,null,null,null,null,"Estimated Total Incentive ($)",{"$f":"MIN(SUM(CX19:CX22),$CH$4)","v":0},null,null,null,null,null,null,null,null,null,null,null,null,null,null,null,null,null,null,null,null,null,null,null,null,null,null,null,null,null,null,null,null,"Electric Retrocommissioning $0.06",null,null,null,null,null,null,null,null,null,null,null,null,null,null,null,null,null,null,null,"Custom Spreadsheet (Excel)"]
[null,null,null,null,null,null,null,null,null,null,null,null,null,null,null,null,null,null,null,null,null,null,null,null,null,null,null,null,null,null,null,null,null,null,null,null,null,null,null,null,null,null,null,null,null,null,null,null,null,null,null,null,null,null,null,null,null,null,null,null,null,null,null,null,null,null,null,null,null,null,null,null,null,null,null,null,null,null,null,null,null,null,null,null,"Other"]
["*The total incentive payment shall not exceed the Customer Project Incentive Cap, as defined in the Customized Offering Procedures Manual for Business. This program is funded by California utility customers and administrated by SDG&E under the auspices of the California Public Utilities Commission. This program may be modified or terminated without prior notice."]
[]
["NOTE: PURCHASE AND/OR INSTALLATION CANNOT OCCUR UNTIL A NOTICE TO PROCEED IS RECEIVED FROM SDG&E"]
["\"SDG&E\" refers to San Diego Gas and Electric Company, a subsidiary of SDG&E Corporation. ©2018 San Diego Gas and Electric Company. All rights reserved. These offerings are funded by California utility customers and administered by SDG&E under the auspices of the California Public Utilities Commission.\nSDG&E prints its materials with soy based inks on recycled paper."]
["2021-03-01"]
[]
[]
["*Rows 3, 20, 21, 22, 23 are CONFIDENTIAL protected information being submitted to the CPUC pursuant to PUC §583 and all applicable protections."]
["* In accordance with California Public Utilities Code section 399.4(b), the customer (or their contractor) must provide SDG&E proof of permit closure before SDG&E will pay any rebate or incentive for the purchase or installation of central air-conditioning, heat pumps, or related fans. Please send corresponding documentation to BusinessEnergySavings@sdge.com."]